[Event "Championnat du monde jeunes U12F"]
[Date "2024.11.24"]
[White "Sunea, Sara Maria"]
[Black "Muradova, Nebahat"]
[WhiteElo "1823"]
[BlackElo "1626"]
[Round "9.27"]
[Result "1-0"]
[TimeControl "5400+30"]

1. e4 {[%clk 1:30:57]} 1... e6 {[%clk 1:30:56]} 2. d4 {[%clk 1:31:21]} 2... d5
{[%clk 1:31:13]} 3. Nc3 {[%clk 1:31:46]} 3... dxe4 {[%clk 1:31:37]} 4. Nxe4
{[%clk 1:32:07]} 4... Nd7 {[%clk 1:31:36]} 5. Nf3 {[%clk 1:27:21]} 5... Ngf6
{[%clk 1:31:40]} 6. Bd3 {[%clk 1:25:10]} 6... Be7 {[%clk 1:30:10]} 7. O-O {[%clk
1:25:11]} 7... O-O {[%clk 1:29:22]} 8. c4 {[%clk 1:21:35]} 8... Nxe4 {[%clk
1:29:18]} 9. Bxe4 {[%clk 1:21:56]} 9... Nf6 {[%clk 1:29:33]} 10. Bc2 {[%clk
1:21:02]} 10... c5 {[%clk 1:27:28]} 11. b3 {[%clk 1:18:54]} 11... b6 {[%clk
1:23:04]} 12. Bb2 {[%clk 1:12:43]} 12... cxd4 {[%clk 1:20:11]} 13. Nxd4 {[%clk
1:12:43]} 13... Bb7 {[%clk 1:20:26]} 14. Qe2 {[%clk 1:12:23]} 14... Bc5 {[%clk
1:17:02]} 15. Rad1 {[%clk 1:08:38]} 15... Qe7 {[%clk 1:14:55]} 16. Rd3 {[%clk
1:02:09]} 16... Bxd4 {[%clk 1:08:40]} 17. Rxd4 {[%clk 0:57:26]} 17... Rfd8
{[%clk 1:04:33]} 18. Rh4 {[%clk 0:55:00]} 18... h6 {[%clk 0:58:28]} 19. Rf4
{[%clk 0:51:00]} 19... Ne8 {[%clk 0:56:35]} 20. Be4 {[%clk 0:35:42]} 20... a6
{[%clk 0:48:25]} 21. h3 {[%clk 0:33:04]} 21... b5 {[%clk 0:46:18]} 22. Bxb7
{[%clk 0:26:57]} 22... Qxb7 {[%clk 0:45:30]} 23. Rc1 {[%clk 0:26:50]} 23... Rac8
{[%clk 0:44:31]} 24. Rg4 {[%clk 0:16:58]} 24... Kf8 {[%clk 0:38:23]} 25. Ba3+
{[%clk 0:16:08]} 25... Kg8 {[%clk 0:38:21]} 26. Bb2 {[%clk 0:14:01]} 26... Kf8
{[%clk 0:38:20]} 27. Qe3 {[%clk 0:13:35]} 27... h5 {[%clk 0:28:09]} 28. Rh4
{[%clk 0:12:29]} 28... g6 {[%clk 0:28:14]} 29. Qh6+ {[%clk 0:11:54]} 29... Ke7
{[%clk 0:28:26]} 30. Qg5+ {[%clk 0:11:54]} 30... Kf8 {[%clk 0:28:41]} 31. Rf4
{[%clk 0:10:18]} 31... Kg8 {[%clk 0:27:47]} 32. Qh6 {[%clk 0:09:33]} 1-0

[Variant "Standard"]
[Site "Europe Echecs"]

[Event "Championnat du monde jeunes U12F"]
[Date "2024.11.24"]
[White "Lukin, Yesenia"]
[Black "Chen, Pin-I"]
[WhiteElo "1732"]
[BlackElo "1601"]
[Round "9.28"]
[Result "1-0"]
[TimeControl "5400+30"]

1. d4 {[%clk 1:30:55]} 1... d5 {[%clk 1:30:53]} 2. Bf4 {[%clk 1:31:17]} 2... Nf6
{[%clk 1:31:11]} 3. e3 {[%clk 1:31:41]} 3... e6 {[%clk 1:31:29]} 4. Nd2 {[%clk
1:31:44]} 4... Bd6 {[%clk 1:31:40]} 5. Bg3 {[%clk 1:31:30]} 5... c5 {[%clk
1:31:36]} 6. c3 {[%clk 1:31:20]} 6... Qc7 {[%clk 1:31:54]} 7. Bb5+ {[%clk
1:28:16]} 7... Nbd7 {[%clk 1:30:31]} 8. Bxd6 Qxd6 {[%clk 1:30:28]} 9. Ngf3 O-O
10. h3 {[%clk 1:19:33]} 10... a6 {[%clk 1:28:13]} 11. Ba4 {[%clk 1:19:40]} 11...
b5 {[%clk 1:27:55]} 12. Bc2 {[%clk 1:19:55]} 12... e5 {[%clk 1:24:46]} 13. dxe5
{[%clk 1:16:31]} 13... Nxe5 {[%clk 1:24:24]} 14. Nxe5 {[%clk 1:16:53]} 14...
Qxe5 {[%clk 1:24:39]} 15. Nf3 {[%clk 1:16:43]} 15... Qc7 {[%clk 1:20:45]} 16.
O-O {[%clk 1:12:31]} 16... Bb7 {[%clk 1:16:49]} 17. Rc1 {[%clk 1:09:09]} 17...
Rfd8 {[%clk 1:11:48]} 18. Qe2 {[%clk 1:08:23]} 18... Ne4 {[%clk 1:01:55]} 19.
Rfd1 {[%clk 1:03:20]} 19... Rac8 {[%clk 1:00:33]} 20. Nd2 {[%clk 1:01:24]} 20...
Qe7 {[%clk 0:54:04]} 21. Nxe4 {[%clk 0:58:37]} 21... dxe4 {[%clk 0:54:15]} 22.
Rxd8+ {[%clk 0:57:51]} 22... Rxd8 {[%clk 0:54:26]} 23. Rd1 {[%clk 0:58:16]}
23... g6 {[%clk 0:46:20]} 24. Rxd8+ {[%clk 0:52:18]} 24... Qxd8 {[%clk 0:46:39]}
25. Qg4 {[%clk 0:49:49]} 25... f5 {[%clk 0:44:26]} 26. Qd1 {[%clk 0:50:13]}
26... Qxd1+ {[%clk 0:44:47]} 27. Bxd1 {[%clk 0:50:38]} 27... Bd5 {[%clk
0:44:53]} 28. a3 {[%clk 0:50:16]} 28... Kf7 {[%clk 0:44:39]} 29. Kh2 {[%clk
0:48:44]} 29... Ke6 {[%clk 0:44:41]} 30. Kg3 {[%clk 0:48:20]} 30... Ke5 {[%clk
0:44:30]} 31. Kh4 {[%clk 0:45:33]} 31... h6 {[%clk 0:42:43]} 32. a4 {[%clk
0:34:04]} 32... c4 {[%clk 0:37:41]} 33. Kg3 {[%clk 0:32:45]} 33... Bc6 {[%clk
0:19:14]} 34. axb5 {[%clk 0:31:07]} 34... axb5 {[%clk 0:19:29]} 35. Kh2 {[%clk
0:28:19]} 35... f4 {[%clk 0:13:41]} 36. Bg4 {[%clk 0:21:01]} 36... g5 {[%clk
0:12:33]} 37. h4 {[%clk 0:21:07]} 37... Kf6 {[%clk 0:07:18]} 38. exf4 {[%clk
0:13:35]} 38... gxf4 {[%clk 0:07:29]} 39. g3 {[%clk 0:12:52]} 39... Ke5 {[%clk
0:04:18]} 40. Kg1 {[%clk 0:09:34]} 40... fxg3 {[%clk 0:03:57]} 41. fxg3 {[%clk
0:09:53]} 41... e3 {[%clk 0:04:14]} 42. Kf1 {[%clk 0:10:06]} 42... Bh1 {[%clk
0:01:16]} 43. Ke2 {[%clk 0:10:31]} 43... Ke4 {[%clk 0:01:27]} 44. Bh5 {[%clk
0:10:50]} 44... Kf5 {[%clk 0:00:57]} 45. Kxe3 {[%clk 0:11:03]} 45... Bc6 {[%clk
0:01:17]} 46. Bd1 {[%clk 0:09:55]} 46... Ke5 {[%clk 0:01:14]} 47. b3 {[%clk
0:10:12]} 47... Bd5 {[%clk 0:00:36]} 48. b4 {[%clk 0:10:17]} 48... Bc6 {[%clk
0:00:57]} 49. Bh5 {[%clk 0:10:10]} 49... Bd7 {[%clk 0:01:04]} 50. g4 {[%clk
0:09:34]} 50... Bc6 {[%clk 0:01:17]} 51. Bg6 {[%clk 0:09:40]} 51... Bd7 {[%clk
0:01:33]} 52. g5 {[%clk 0:09:11]} 52... hxg5 {[%clk 0:01:58]} 53. hxg5 {[%clk
0:09:27]} 53... Be6 {[%clk 0:00:58]} 54. Be8 {[%clk 0:09:38]} 54... Kf5 {[%clk
0:01:14]} 55. Bxb5 {[%clk 0:09:44]} 55... Kxg5 {[%clk 0:01:40]} 56. Kd4 {[%clk
0:10:03]} 56... Kf6 {[%clk 0:01:48]} 57. Bxc4 {[%clk 0:10:24]} 57... Bc8 {[%clk
0:02:11]} 58. Bd5 {[%clk 0:10:35]} 58... Ke7 {[%clk 0:02:26]} 59. c4 {[%clk
0:10:49]} 59... Kd7 {[%clk 0:02:49]} 60. b5 {[%clk 0:10:37]} 60... Kc7 {[%clk
0:02:56]} 1-0

[Variant "Standard"]
[Site "Europe Echecs"]

[Event "Championnat du monde jeunes U12F"]
[Date "2024.11.24"]
[White "Potikha, Shelley"]
[Black "Xu, Melissa"]
[WhiteElo "1561"]
[BlackElo "1731"]
[Round "9.29"]
[Result "1-0"]
[TimeControl "5400+30"]

1. e4 {[%clk 1:30:35]} 1... c5 {[%clk 1:30:47]} 2. Nf3 {[%clk 1:30:53]} 2... a6
{[%clk 1:31:14]} 3. Be2 {[%clk 1:30:13]} 3... d6 {[%clk 1:29:50]} 4. O-O {[%clk
1:30:25]} 4... Nf6 {[%clk 1:29:58]} 5. Nc3 {[%clk 1:29:08]} 5... Nc6 {[%clk
1:28:10]} 6. d4 {[%clk 1:23:57]} 6... cxd4 {[%clk 1:28:07]} 7. Nxd4 {[%clk
1:24:14]} 7... Bd7 {[%clk 1:23:49]} 8. Be3 {[%clk 1:20:34]} 8... e6 {[%clk
1:21:35]} 9. f4 {[%clk 1:18:07]} 9... Be7 {[%clk 1:21:02]} 10. Qe1 {[%clk
1:06:06]} 10... h5 {[%clk 1:13:54]} 11. Nxc6 {[%clk 0:58:52]} 11... Bxc6 {[%clk
1:12:48]} 12. e5 {[%clk 0:57:12]} 12... Ne4 {[%clk 1:06:32]} 13. Nxe4 {[%clk
0:55:37]} 13... Bxe4 {[%clk 1:06:31]} 14. Bf3 {[%clk 0:47:32]} 14... Bxf3 {[%clk
1:02:55]} 15. Rxf3 {[%clk 0:47:03]} 15... g6 {[%clk 1:01:47]} 16. exd6 {[%clk
0:44:28]} 16... Qxd6 {[%clk 1:00:13]} 17. Rd1 {[%clk 0:41:25]} 17... Qc7 {[%clk
0:56:02]} 18. Bd4 {[%clk 0:39:33]} 18... Rg8 {[%clk 0:52:24]} 19. Be5 {[%clk
0:33:15]} 19... Qb6+ {[%clk 0:48:14]} 20. Kh1 {[%clk 0:32:41]} 20... Rc8 {[%clk
0:45:39]} 21. Rb3 {[%clk 0:24:40]} 21... Qa7 {[%clk 0:41:57]} 22. Qd2 {[%clk
0:14:52]} 22... Rd8 {[%clk 0:39:40]} 23. Rd3 {[%clk 0:14:12]} 23... Rxd3 {[%clk
0:31:58]} 24. Qxd3 {[%clk 0:13:39]} 24... b5 {[%clk 0:29:47]} 25. Qe4 {[%clk
0:11:38]} 25... f5 {[%clk 0:24:01]} 26. Qc6+ {[%clk 0:11:15]} 26... Kf7 {[%clk
0:23:56]} 27. Rd7 {[%clk 0:09:00]} 27... Rd8 {[%clk 0:23:10]} 28. Rxd8 {[%clk
0:07:16]} 28... Bxd8 {[%clk 0:23:34]} 29. h3 {[%clk 0:06:48]} 29... Bb6 {[%clk
0:18:08]} 30. Qd6 {[%clk 0:03:56]} 30... Qb7 {[%clk 0:15:16]} 31. b3 {[%clk
0:03:20]} 31... Qa7 {[%clk 0:14:30]} 32. c4 {[%clk 0:03:07]} 32... bxc4 {[%clk
0:12:58]} 33. bxc4 {[%clk 0:03:30]} 33... Bc5 {[%clk 0:12:46]} 34. Qd8 {[%clk
0:02:56]} 34... Qe7 {[%clk 0:07:37]} 35. Qh8 {[%clk 0:01:22]} 35... Qh4 {[%clk
0:05:32]} 36. Qg7+ {[%clk 0:01:17]} 36... Ke8 {[%clk 0:05:34]} 37. Qxg6+ {[%clk
0:01:13]} 37... Kf8 {[%clk 0:04:51]} 38. Qg7+ {[%clk 0:00:51]} 38... Ke8 {[%clk
0:05:08]} 39. Qh8+ {[%clk 0:00:43]} 39... Ke7 {[%clk 0:04:37]} 40. Qg7+ {[%clk
0:00:55]} 40... Ke8 {[%clk 0:05:00]} 41. Qg8+ {[%clk 0:00:47]} 41... Ke7 {[%clk
0:04:54]} 42. Qg5+ {[%clk 0:00:50]} 42... Qxg5 {[%clk 0:05:10]} 43. fxg5 {[%clk
0:01:16]} 43... Kf7 {[%clk 0:05:25]} 44. h4 {[%clk 0:01:32]} 44... Bf2 {[%clk
0:04:39]} 45. g3 {[%clk 0:01:39]} 45... Bc5 {[%clk 0:04:48]} 46. Kg2 {[%clk
0:01:50]} 46... Kg6 {[%clk 0:04:08]} 47. Kf3 {[%clk 0:01:58]} 47... Kf7 {[%clk
0:04:07]} 48. Ke2 {[%clk 0:01:59]} 48... Kg6 {[%clk 0:04:15]} 49. Kd3 {[%clk
0:02:19]} 49... Kf7 {[%clk 0:04:40]} 50. Kc2 {[%clk 0:02:39]} 50... a5 {[%clk
0:04:49]} 51. Kb3 {[%clk 0:02:40]} 51... Bb4 {[%clk 0:05:01]} 52. Ka4 {[%clk
0:02:27]} 52... Kg6 {[%clk 0:05:02]} 53. Kb5 {[%clk 0:02:51]} 53... Kf7 {[%clk
0:05:23]} 54. c5 {[%clk 0:03:06]} 54... Bxc5 {[%clk 0:05:41]} 55. Kxc5 {[%clk
0:03:32]} 55... Ke7 {[%clk 0:06:01]} 56. Kb5 {[%clk 0:03:56]} 56... a4 {[%clk
0:06:24]} 57. Kxa4 {[%clk 0:04:13]} 57... Kf7 {[%clk 0:06:48]} 58. Kb5 {[%clk
0:04:39]} 58... Ke7 {[%clk 0:07:11]} 59. a4 {[%clk 0:05:05]} 59... Kf7 {[%clk
0:07:35]} 60. a5 {[%clk 0:05:31]} 60... Ke7 {[%clk 0:08:01]} 61. a6 {[%clk
0:05:51]} 61... Kf7 {[%clk 0:08:24]} 62. a7 {[%clk 0:06:02]} 62... Ke7 {[%clk
0:08:51]} 63. a8=Q {[%clk 0:06:15]} 63... Kf7 {[%clk 0:09:20]} 64. Qb7+ {[%clk
0:06:24]} 1-0

[Variant "Standard"]
[Site "Europe Echecs"]

[Event "Championnat du monde jeunes U12F"]
[Date "2024.11.24"]
[White "Oksanen, Maria"]
[Black "Anu, Bayart-Uchral"]
[WhiteElo "1725"]
[BlackElo "1624"]
[Round "9.30"]
[Result "1-0"]
[TimeControl "5400+30"]

1. e4 {[%clk 1:31:00]} 1... d5 {[%clk 1:29:45]} 2. exd5 {[%clk 1:31:24]} 2...
Qxd5 {[%clk 1:28:56]} 3. Nc3 {[%clk 1:31:46]} 3... Qa5 {[%clk 1:29:09]} 4. d4
{[%clk 1:32:11]} 4... Nf6 {[%clk 1:29:03]} 5. Nf3 {[%clk 1:32:30]} 5... Bf5
{[%clk 1:29:04]} 6. Bc4 {[%clk 1:32:51]} 6... e6 {[%clk 1:29:23]} 7. Bd2 {[%clk
1:33:13]} 7... c6 {[%clk 1:29:36]} 8. Nd5 {[%clk 1:33:28]} 8... Qd8 {[%clk
1:29:55]} 9. Nxf6+ {[%clk 1:33:50]} 9... gxf6 {[%clk 1:29:43]} 10. Be3 {[%clk
1:25:51]} 10... Bd6 {[%clk 1:27:27]} 11. Bd3 {[%clk 1:24:44]} 11... Bxd3 {[%clk
1:20:09]} 12. Qxd3 {[%clk 1:24:53]} 12... Nd7 {[%clk 1:20:22]} 13. Bh6 {[%clk
1:24:41]} 13... Qa5+ {[%clk 1:03:21]} 14. Bd2 {[%clk 1:22:43]} 14... Qc7 {[%clk
1:03:36]} 15. O-O-O {[%clk 1:20:38]} 15... O-O-O {[%clk 1:03:17]} 16. g3 {[%clk
1:20:05]} 16... f5 {[%clk 0:53:00]} 17. c4 {[%clk 1:11:16]} 17... c5 {[%clk
0:38:49]} 18. d5 {[%clk 1:05:42]} 18... Ne5 {[%clk 0:29:09]} 19. Qc3 {[%clk
1:03:23]} 19... Nxf3 {[%clk 0:23:50]} 20. Qxf3 {[%clk 1:03:16]} 20... Be5 {[%clk
0:22:39]} 21. Bc3 {[%clk 0:57:23]} 21... Bxc3 {[%clk 0:16:03]} 22. Qxc3 {[%clk
0:57:26]} 22... e5 {[%clk 0:07:38]} 23. Qf3 {[%clk 0:53:30]} 23... Qd7 {[%clk
0:08:01]} 24. Qe3 {[%clk 0:53:46]} 24... Qd6 {[%clk 0:08:15]} 25. Qg5 {[%clk
0:53:52]} 25... Qg6 {[%clk 0:08:23]} 26. Qe7 {[%clk 0:53:05]} 26... Qd6 {[%clk
0:07:22]} 27. Qxf7 {[%clk 0:52:44]} 27... Rdf8 {[%clk 0:05:41]} 28. Qe6+ {[%clk
0:45:43]} 28... Qxe6 {[%clk 0:04:40]} 29. dxe6 {[%clk 0:46:04]} 29... Re8 {[%clk
0:04:46]} 30. Rd5 {[%clk 0:46:18]} 30... Rxe6 {[%clk 0:05:12]} 31. Rxc5+ {[%clk
0:46:39]} 31... Kb8 {[%clk 0:05:30]} 32. Re1 {[%clk 0:46:01]} 32... Rhe8 {[%clk
0:05:42]} 33. Rd5 {[%clk 0:46:02]} 33... Kc7 {[%clk 0:05:46]} 34. Red1 {[%clk
0:46:04]} 34... R6e7 {[%clk 0:05:33]} 35. b4 {[%clk 0:39:44]} 35... b6 {[%clk
0:05:20]} 36. Kc2 {[%clk 0:39:16]} 36... Rf8 {[%clk 0:02:23]} 37. Re1 {[%clk
0:34:38]} 37... Rfe8 {[%clk 0:02:28]} 38. Kb3 {[%clk 0:33:43]} 38... Kc6 {[%clk
0:01:35]} 39. b5+ {[%clk 0:33:18]} 39... Kc7 {[%clk 0:01:37]} 40. Kb4 {[%clk
0:33:32]} 40... Re6 {[%clk 0:01:50]} 41. a4 {[%clk 0:33:04]} 41... R8e7 {[%clk
0:01:59]} 42. a5 {[%clk 0:32:36]} 42... Kb7 {[%clk 0:00:52]} 43. c5 {[%clk
0:30:50]} 43... bxc5+ {[%clk 0:00:57]} 44. Rxc5 {[%clk 0:31:13]} 44... h6 {[%clk
0:00:54]} 45. a6+ {[%clk 0:31:06]} 45... Kb8 {[%clk 0:00:56]} 46. Rd1 {[%clk
0:31:20]} 46... Re8 {[%clk 0:01:14]} 47. Ka5 {[%clk 0:31:02]} 47... h5 {[%clk
0:00:37]} 48. Rd7 {[%clk 0:27:33]} 48... R6e7 {[%clk 0:01:00]} 49. Rd6 {[%clk
0:27:55]} 49... Re6 {[%clk 0:01:21]} 50. Rcc6 {[%clk 0:28:06]} 50... Rxd6 {[%clk
0:01:40]} 51. Rxd6 {[%clk 0:28:27]} 51... e4 {[%clk 0:00:38]} 52. Rh6 {[%clk
0:27:26]} 52... h4 {[%clk 0:00:48]} 53. Rxh4 {[%clk 0:27:45]} 53... Rf8 {[%clk
0:00:34]} 54. Rf4 {[%clk 0:26:50]} 54... Kc7 {[%clk 0:00:33]} 55. g4 {[%clk
0:26:37]} 55... Rh8 {[%clk 0:00:45]} 56. gxf5 {[%clk 0:23:02]} 56... Rxh2 {[%clk
0:01:03]} 57. f6 {[%clk 0:23:05]} 57... Rh8 {[%clk 0:01:26]} 58. Rxe4 {[%clk
0:23:13]} 58... Rf8 {[%clk 0:01:50]} 59. Re6 {[%clk 0:23:00]} 59... Kb8 {[%clk
0:01:59]} 60. b6 {[%clk 0:22:47]} 60... axb6+ {[%clk 0:02:07]} 61. Kxb6 {[%clk
0:23:00]} 61... Ka8 {[%clk 0:02:27]} 62. f4 {[%clk 0:22:57]} 62... Kb8 {[%clk
0:02:31]} 63. a7+ {[%clk 0:22:29]} 63... Ka8 {[%clk 0:02:52]} 64. f7 1-0

[Variant "Standard"]
[Site "Europe Echecs"]

[Event "Championnat du monde jeunes U12F"]
[Date "2024.11.24"]
[White "Liu, Jingyu"]
[Black "Stepankova, Linda"]
[WhiteElo "1680"]
[BlackElo "1624"]
[Round "9.31"]
[Result "1-0"]
[TimeControl "5400+30"]

1. d4 {[%clk 1:30:58]} 1... Nf6 {[%clk 1:30:56]} 2. c4 {[%clk 1:31:22]} 2... e5
{[%clk 1:31:00]} 3. dxe5 {[%clk 1:31:27]} 3... Ng4 {[%clk 1:31:14]} 4. Nf3
{[%clk 1:30:41]} 4... Bc5 {[%clk 1:31:24]} 5. e3 {[%clk 1:26:04]} 5... Nc6
{[%clk 1:30:34]} 6. Be2 {[%clk 1:08:25]} 6... O-O {[%clk 1:27:29]} 7. O-O {[%clk
1:06:42]} 7... Ngxe5 {[%clk 1:27:12]} 8. Nxe5 {[%clk 1:02:25]} 8... Nxe5 {[%clk
1:27:32]} 9. Nd2 {[%clk 1:02:46]} 9... d6 {[%clk 1:18:20]} 10. Nf3 {[%clk
0:54:17]} 10... Be6 {[%clk 1:07:19]} 11. Nxe5 {[%clk 0:30:44]} 11... dxe5 {[%clk
1:06:44]} 12. b3 {[%clk 0:31:04]} 12... Qg5 {[%clk 0:53:33]} 13. Qc2 {[%clk
0:18:33]} 13... Rad8 {[%clk 0:38:07]} 14. Rd1 {[%clk 0:13:53]} 14... Qh4 {[%clk
0:31:20]} 15. Bb2 {[%clk 0:11:31]} 15... Qg5 {[%clk 0:26:09]} 16. Rxd8 {[%clk
0:10:22]} 16... Rxd8 {[%clk 0:25:52]} 17. Rd1 {[%clk 0:10:41]} 17... Rxd1+
{[%clk 0:25:05]} 18. Qxd1 {[%clk 0:10:39]} 18... e4 {[%clk 0:23:41]} 19. g3
{[%clk 0:09:19]} 19... Bh3 {[%clk 0:20:32]} 20. Bf1 {[%clk 0:09:15]} 20... Bg4
{[%clk 0:18:27]} 21. Qd2 {[%clk 0:08:11]} 21... h6 {[%clk 0:16:35]} 22. Bg2
{[%clk 0:07:37]} 22... Bf3 {[%clk 0:14:32]} 23. Bf1 {[%clk 0:04:43]} 23... Qe7
{[%clk 0:13:58]} 24. Bg2 {[%clk 0:02:37]} 24... Bb4 {[%clk 0:10:04]} 25. Qd4
{[%clk 0:02:42]} 25... Qg5 {[%clk 0:02:05]} 26. h4 {[%clk 0:01:52]} 26... Qg6
{[%clk 0:01:25]} 27. Bh3 {[%clk 0:01:08]} 27... c5 {[%clk 0:00:46]} 28. Qd8+
{[%clk 0:01:05]} 28... Kh7 {[%clk 0:01:07]} 29. a3 {[%clk 0:01:27]} 29... Be1
{[%clk 0:01:01]} 30. Kf1 {[%clk 0:01:06]} 30... Qb6 {[%clk 0:00:46]} 31. Qxb6
{[%clk 0:00:56]} 31... axb6 {[%clk 0:01:13]} 32. Kxe1 {[%clk 0:01:19]} 32... Kg6
{[%clk 0:01:36]} 33. Bc8 f6 {[%clk 0:01:39]} 34. Bxb7 {[%clk 0:02:03]} 34... Kh5
{[%clk 0:02:07]} 35. b4 {[%clk 0:02:08]} 35... g6 {[%clk 0:02:25]} 36. bxc5
{[%clk 0:02:30]} 36... bxc5 {[%clk 0:02:51]} 37. Bxf6 {[%clk 0:02:42]} 37... Bg4
{[%clk 0:03:08]} 38. Bxe4 {[%clk 0:02:53]} 38... Be6 {[%clk 0:03:27]} 39. Bf3+
{[%clk 0:02:59]} 39... Bg4 {[%clk 0:03:08]} 40. Bxg4+ {[%clk 0:03:23]} 40...
Kxg4 {[%clk 0:03:36]} 41. a4 {[%clk 0:03:42]} 1-0

[Variant "Standard"]
[Site "Europe Echecs"]

[Event "Championnat du monde jeunes U12F"]
[Date "2024.11.24"]
[White "Radenkovic, Lena"]
[Black "Liang, Candice"]
[WhiteElo "1675"]
[BlackElo "1551"]
[Round "9.32"]
[Result "0-1"]
[TimeControl "5400+30"]

1. Nf3 {[%clk 1:30:23]} 1... d5 {[%clk 1:30:54]} 2. g3 {[%clk 1:29:14]} 2... Bg4
{[%clk 1:31:15]} 3. Bg2 {[%clk 1:28:47]} 3... Nd7 {[%clk 1:31:33]} 4. O-O {[%clk
1:26:28]} 4... e6 {[%clk 1:31:54]} 5. d3 {[%clk 1:24:13]} 5... Bd6 {[%clk
1:31:50]} 6. Nbd2 {[%clk 1:22:01]} 6... Ne7 {[%clk 1:32:09]} 7. Qe1 {[%clk
1:18:53]} 7... O-O {[%clk 1:32:28]} 8. e4 {[%clk 1:17:02]} 8... c5 {[%clk
1:32:42]} 9. b3 {[%clk 1:10:00]} 9... Qc7 {[%clk 1:30:58]} 10. Bb2 {[%clk
1:05:49]} 10... f6 {[%clk 1:30:56]} 11. h3 {[%clk 1:01:03]} 11... Bh5 {[%clk
1:31:13]} 12. d4 {[%clk 0:59:49]} 12... cxd4 {[%clk 1:26:29]} 13. Nxd4 {[%clk
0:58:55]} 13... Bf7 {[%clk 1:25:36]} 14. c4 {[%clk 0:52:11]} 14... dxc4 {[%clk
1:19:16]} 15. Nxc4 {[%clk 0:51:33]} 15... Bc5 {[%clk 1:12:38]} 16. Rc1 {[%clk
0:45:56]} 16... Bxd4 {[%clk 1:08:08]} 17. Bxd4 {[%clk 0:44:33]} 17... Nc6 {[%clk
1:07:39]} 18. Bc3 {[%clk 0:41:24]} 18... Nc5 {[%clk 1:02:09]} 19. Qe3 {[%clk
0:38:41]} 19... b6 {[%clk 0:58:39]} 20. e5 {[%clk 0:35:19]} 20... fxe5 {[%clk
0:56:07]} 21. Bxe5 {[%clk 0:34:49]} 21... Nxe5 {[%clk 0:52:11]} 22. Bxa8 {[%clk
0:34:09]} 22... Ned3 {[%clk 0:52:20]} 23. Rc2 {[%clk 0:31:11]} 23... Rxa8 {[%clk
0:52:31]} 24. f4 {[%clk 0:28:10]} 24... Nb4 {[%clk 0:50:20]} 25. Rd2 {[%clk
0:23:28]} 25... Nd5 {[%clk 0:45:08]} 26. Qe5 {[%clk 0:20:08]} 26... Qxe5 {[%clk
0:42:24]} 27. fxe5 {[%clk 0:19:16]} 27... Ne4 {[%clk 0:41:38]} 28. Rd3 {[%clk
0:18:46]} 28... Bg6 {[%clk 0:39:24]} 29. Kh2 {[%clk 0:14:25]} 29... Ng5 {[%clk
0:31:38]} 30. Rdd1 {[%clk 0:13:02]} 30... b5 {[%clk 0:30:57]} 31. Rxd5 {[%clk
0:09:04]} 31... exd5 {[%clk 0:30:10]} 32. Nd6 {[%clk 0:08:43]} 32... Be4 {[%clk
0:28:55]} 33. g4 {[%clk 0:07:39]} 33... Nf3+ {[%clk 0:28:43]} 34. Kg3 {[%clk
0:07:52]} 34... Nxe5 {[%clk 0:28:57]} 35. Nxb5 {[%clk 0:07:32]} 35... Bd3 {[%clk
0:28:37]} 36. Rd1 {[%clk 0:07:30]} 36... Bxb5 {[%clk 0:23:58]} 37. Rxd5 {[%clk
0:07:28]} 37... Nxg4 {[%clk 0:23:45]} 38. Rxb5 {[%clk 0:07:14]} 38... Nf6 {[%clk
0:23:51]} 39. Ra5 {[%clk 0:06:52]} 39... Kf7 {[%clk 0:22:26]} 40. b4 {[%clk
0:05:20]} 40... Ne4+ {[%clk 0:22:35]} 41. Kf3 {[%clk 0:05:04]} 41... Nd6 {[%clk
0:22:33]} 42. b5 {[%clk 0:04:29]} 42... Nc4 {[%clk 0:22:03]} 43. Ra6 {[%clk
0:04:45]} 43... Ke7 {[%clk 0:21:04]} 44. Ke4 Nd6+ {[%clk 0:21:05]} 45. Kd5
{[%clk 0:04:00]} 45... Nxb5 {[%clk 0:21:09]} 46. Kc6 {[%clk 0:02:53]} 46... Nd6
{[%clk 0:17:53]} 47. Kd5 {[%clk 0:02:19]} 47... Nf5 {[%clk 0:15:27]} 48. Kc6
{[%clk 0:02:08]} 48... Nd6 {[%clk 0:14:11]} 49. Kd5 {[%clk 0:02:25]} 49... Nb5
{[%clk 0:14:35]} 50. Kc5 {[%clk 0:02:38]} 50... Nc7 {[%clk 0:13:47]} 51. Rc6
{[%clk 0:02:14]} 51... Rc8 {[%clk 0:12:33]} 52. Kd4 {[%clk 0:01:51]} 52... Ne6+
{[%clk 0:11:56]} 53. Rxe6+ {[%clk 0:02:06]} 53... Kxe6 {[%clk 0:12:19]} 54. a4
{[%clk 0:02:23]} 54... a5 {[%clk 0:12:23]} 55. h4 {[%clk 0:02:43]} 55... Rb8
{[%clk 0:12:35]} 56. Kc3 {[%clk 0:02:59]} 56... Rb4 {[%clk 0:12:52]} 57. h5
{[%clk 0:03:23]} 57... Rxa4 {[%clk 0:13:06]} 58. Kb3 {[%clk 0:03:32]} 58... Rh4
{[%clk 0:13:18]} 59. h6 {[%clk 0:03:57]} 59... Rxh6 {[%clk 0:13:27]} 60. Ka4
{[%clk 0:04:13]} 60... g5 {[%clk 0:13:43]} 61. Kxa5 {[%clk 0:04:35]} 61... g4
{[%clk 0:13:40]} 62. Kb6 {[%clk 0:04:54]} 62... g3 {[%clk 0:13:54]} 63. Kb7
{[%clk 0:05:20]} 63... g2 {[%clk 0:14:18]} 64. Kb8 {[%clk 0:05:41]} 64... g1=Q
{[%clk 0:14:18]} 65. Ka8 {[%clk 0:05:51]} 65... Kf5 {[%clk 0:14:26]} 66. Kb8
{[%clk 0:06:04]} 66... Qg7 {[%clk 0:14:25]} 67. Ka8 {[%clk 0:05:55]} 67... Rf6
{[%clk 0:14:42]} 68. Kb8 {[%clk 0:06:21]} 68... Rf8# 0-1

[Variant "Standard"]
[Site "Europe Echecs"]